{"text_format":"1","workbook":"xlsx","n_sheets":2,"sheets":["Sachbezüge","Lohn"],"not_rendered":{"charts":0,"images":4,"macros":1,"external_links":0,"defined_names":1,"comments":1,"pivot_tables":0},"unopened":[],"bounds":{"document_bytes":16777216,"sheet_cells":100000,"rows_first":2000,"rows_last":500,"rows_between":2000,"halvings":0,"cell_chars":16384,"cell_head_chars":4096},"cells_cut":0,"cells_raw":0,"read":"whole","date_system":"1900"}

{"sheet":"Sachbezüge","index":0,"n_rows":29,"n_cols":5,"rows_kept":29,"cut":false,"hidden":false,"merged":[[28,0,28,4],[16,0,17,0],[16,3,16,4],[17,3,17,4],[24,1,24,2],[25,1,25,2],[24,3,24,4],[25,3,25,4],[20,1,20,2],[21,1,21,2],[22,1,22,2],[23,1,23,2],[16,1,16,2],[17,1,17,2],[18,1,18,2],[19,1,19,2],[18,3,18,4],[19,3,19,4],[22,3,22,4],[23,3,23,4],[20,3,20,4],[21,3,21,4]]}
[null," "]
[]
[]
[]
[]
["Sachbezugswerte für Jugendliche und Auszubildende im Kalenderjahr 2024"]
["in Bayern"]
[]
["+ für freie Verpflegung"]
[]
[null,"Frühstück","Mittagessen","Abendessen","Verpflegung\ninsgesamt"]
["monatlich",65,124,124,313]
["kalendertäglich",2.17,4.13,4.13,10.43]
[]
["+ für freie Unterkunft"]
[]
["Unterkunft belegt mit","Unterkunft allgemein",null,"Aufnahme im Arbeitgeberhaushalt/"]
[null,"EUR",null,"Gemeinschaftsunterkunft EUR"]
["1 Azubi monatlich",236.3,null,194.6]
["kalendertäglich",7.88,null,6.49]
["2 Azubis monatlich",125.1,null,83.4]
["kalendertäglich",4.17,null,2.78]
["3 Azubis monatlich",97.3,null,55.6]
["kalendertäglich",3.24,null,1.85]
["mehr als 3 Azubis mtl.",69.5,null,27.8]
["kalendertäglich",2.3199999999999998,null,0.93]
[]
["Erläuterungen:"]
["Für die Ermittlung des anzusetzenden Sachbezugswertes für einen Teil-Entgeltabrechnungszeitraum sind die jeweiligen Tagesbeträge mit der Anzahl der Kalendertage zu multiplizieren.\nWäre es nach Lage des Einzelfalles unbillig, den Wert der Unterkunft nach den vorstehenden Tabellenwerten zu bestimmen, kann die Unterkunft nach § 2 Abs. 3 S. 3  Sozialversicherungsentgelt-verordnung mit dem ortsüblichen Mietpreis bewertet werden.\nEine Aufnahme in den Arbeitgeberhaushalt liegt vor, wenn der Auszubildende sowohl in die Wohnungs- als auch in die Verpflegungsgemeinschaft des Arbeitgebers aufgenommen wird. Bei ausschließlicher Zurverfügungstellung von Unterkunft liegt dagegen keine \"Aufnahme\" in den Arbeitgeberhaushalt vor, so dass der ungekürzte Unterkunftswert anzusetzen ist.\nFür freie Wohnung ist kein amtlicher Sachbezugswert festgesetzt. Vielmehr ist für freie Wohnung grundsätzlich der ortsübliche Mietpreis anzusetzen. Eine Wohnung ist im Gegensatz zur Unterkunft eine in sich geschlossene Einheit von Räumen, in denen ein selbstständiger Haushalt geführt werden kann. Wesentlich ist, dass eine Wasserversorgung und -entsorgung, zumindest eine einer Küche vergleichbare Kochgelegenheit sowie eine Toilette vorhanden sind. Danach stellt z.B. ein Einzimmerappartement mit Küchenzeile und WC als Nebenraum eine Wohnung dar, während bei Mitbenutzung von Bad, Toilette und Küche lediglich eine Unterkunft vorliegt. Wird mehreren Arbeitnehmern eine Wohnung zur gemeinsamen Nutzung (Wohngemeinschaft) zur Verfügung gestellt, liegt insoweit nicht freie Wohnung, sondern lediglich freie Unterkunft vor.\nIst die Feststellung des ortsüblichen Mietpreises mit außerordentlichen Schwierigkeiten verbunden, kann die Wohnung mit 4,89 EUR mtl. je Quadratmeter bzw. bei einfacher Ausstattung (ohne Sammelheizung oder ohne Bad oder Dusche) mit 4,00 EUR mtl. je Quadratmeter bewertet werden.\nBei Gewährung von unentgeltlichen oder verbilligten Mahlzeiten im Betrieb (§ 40 Abs. 2 Satz 1 Nr. 1 EStG) sind sowohl für volljährige Arbeitnehmer als auch für Jugendliche und Auszubildende nachstehende Beträge anzusetzen:\nFrühstück:   2,17 EUR   /   Mittagessen:   4,13 EUR   /   Abendessen:   4,13 EUR."]

{"sheet":"Lohn","index":1,"n_rows":33,"n_cols":12,"rows_kept":33,"cut":false,"hidden":false,"merged":[]}
[]
[null,"Vergütungsberechnung für Auszubildende ab 1. Januar 2024"]
[null,"nach dem Tarifvertrag über Ausbildungsvergütungen in der Land- und Forstwirtschaft in Bayern"]
[null,"Tarif siehe:","http://www.stmelf.bayern.de/berufsbildung/berufe//004067/"]
[]
[]
[null,null,"Brutto-\nvergütung\nnach Tarif","Kranken-\nversicherung\nAN-Anteil","Renten-\nversicherung\nAN-Anteil","Arbeitslosen-\nversicherung\nAN-Anteil","Pflege-\nversicherung\nAN-Anteil","Summe der\nAbzüge\nAN-Anteil Sozialvers.","Zwischen-\nsumme","Sachbezüge\nnach Angabe","Altersver-\nsorgung","Netto-\nvergütung\nggf. ./. Lohnsteuer"]
[null,"in den ersten\n6 Monaten",850,{"$f":"ROUND($D$28*C8,2)+ROUND($F$28*C8,2)","v":69.28},{"$f":"ROUND($D$29*C8,2)","v":79.05},{"$f":"ROUND($D$30*C8,2)","v":11.05},{"$f":"IF($J$30=\"ja\",ROUND(($D$31+$F$31)*C8,2),ROUND($D$31*C8,2))","v":14.45},{"$f":"SUM(D8:G8)","v":173.82999999999998},{"$f":"C8-H8","v":676.17000000000007},{"$f":"IF((H21*Sachbezüge!B13+H23*Sachbezüge!C13+H25*Sachbezüge!D13+IF(K23=\"ja\",Sachbezüge!D19,\"0\"))/C8>0.75,C8*0.75,IF(AND(H21=30,H23=30,H25=30,K23=\"ja\"),D23,H21*Sachbezüge!B13+H23*Sachbezüge!C13+H25*Sachbezüge!D13+IF(K23=\"ja\",Sachbezüge!D19,\"0\")))","v":340.62},{"$f":"IF($J$28=\"ja\",10,\"-\")","v":10},{"$f":"IF($J$28=\"ja\",I8-J8-K8,I8-J8)","v":325.55000000000007}]
[null,"ab dem 7. Monat",950,77.429999999999993,88.35,12.35,16.149999999999999,194.27999999999997,755.72,{"$f":"IF((H21*Sachbezüge!B13+H23*Sachbezüge!C13+H25*Sachbezüge!D13+IF(K23=\"ja\",Sachbezüge!D19,\"0\"))/C9>0.75,C9*0.75,IF(AND(H21=30,H23=30,H25=30,K23=\"ja\"),D23,H21*Sachbezüge!B13+H23*Sachbezüge!C13+H25*Sachbezüge!D13+IF(K23=\"ja\",Sachbezüge!D19,\"0\")))","v":340.62},10,405.1]
[null,"ab dem 13. Monat,\nunter 18 Jahren",700,57.050000000000004,65.099999999999994,9.1,11.9,143.15,556.85,{"$f":"IF((H21*Sachbezüge!B13+H23*Sachbezüge!C13+H25*Sachbezüge!D13+IF(K23=\"ja\",Sachbezüge!D19,\"0\"))/C10>0.75,C10*0.75,IF(AND(H21=30,H23=30,H25=30,K23=\"ja\"),D23,H21*Sachbezüge!B13+H23*Sachbezüge!C13+H25*Sachbezüge!D13+IF(K23=\"ja\",Sachbezüge!D19,\"0\")))","v":340.62},10,206.23000000000002]
[null,"in den ersten 6 Mona-\nten, über 18 Jahren",630,51.35,58.59,8.19,10.71,128.84,501.15999999999997,{"$f":"IF((H21*Sachbezüge!B13+H23*Sachbezüge!C13+H25*Sachbezüge!D13+IF(K23=\"ja\",Sachbezüge!D19,\"0\"))/C11>0.75,C11*0.75,IF(AND(H21=30,H23=30,H25=30,K23=\"ja\"),D23,H21*Sachbezüge!B13+H23*Sachbezüge!C13+H25*Sachbezüge!D13+IF(K23=\"ja\",Sachbezüge!D19,\"0\")))","v":340.62},10,150.53999999999996]
[null,"ab dem 7. Monat,\nüber 18 Jahren",690,56.239999999999995,64.17,8.9700000000000006,11.73,141.10999999999999,548.89,{"$f":"IF((H21*Sachbezüge!B13+H23*Sachbezüge!C13+H25*Sachbezüge!D13+IF(K23=\"ja\",Sachbezüge!D19,\"0\"))/C12>0.75,C12*0.75,IF(AND(H21=30,H23=30,H25=30,K23=\"ja\"),D23,H21*Sachbezüge!B13+H23*Sachbezüge!C13+H25*Sachbezüge!D13+IF(K23=\"ja\",Sachbezüge!D19,\"0\")))","v":340.62},10,198.26999999999998]
[null,"ab dem 13. Monat",1050,85.580000000000013,97.65,13.65,17.850000000000001,214.73000000000002,835.27,{"$f":"IF((H21*Sachbezüge!B13+H23*Sachbezüge!C13+H25*Sachbezüge!D13+IF(K23=\"ja\",Sachbezüge!D19,\"0\"))/C13>0.75,C13*0.75,IF(AND(H21=30,H23=30,H25=30,K23=\"ja\"),D23,H21*Sachbezüge!B13+H23*Sachbezüge!C13+H25*Sachbezüge!D13+IF(K23=\"ja\",Sachbezüge!D19,\"0\")))","v":340.62},10,484.65]
[]
[]
[null,null,"Die Sachbezüge dürfen maximal 75% der Bruttovergütung betragen."]
[null,null,"Berechtigterweise nicht in Anspruch genommene Sachbezüge (Urlaub, Berufsschultage, Lehrgänge, u.ä.) "]
[null,null,"müssen dem Auszubildenden ausbezahlt bzw. erstattet werden."]
[]
[null,null,"Angaben zu den Sachbezügen",null,null,null,null,"Anzahl erhaltene"]
[null,null,null,null,null,null,"Frühstück:",14]
[]
[null,null,null,{"$f":"Sachbezüge!E12+Sachbezüge!D19","v":507.6},"(30 Tage)","oder","Mittagessen:",14,"und","Unterkunft:","ja"]
[]
[null,null,null,null,null,null,"Abendessen:",14,null,"(ja=voller Monat od. nein)"]
[]
[null,null,"Sozialversicherungsbeitrag  (Arbeitnehmeranteil 50%)",null,null,null,null,"Zusätzliche"]
[null,null,"KrankenVS",7.2999999999999995E-2,"+",8.5000000000000006E-3,null,"Altersversorgung:",null,"ja","(ja od. nein)"]
[null,null,"RentenVS",9.2999999999999999E-2,null,"(Zusatzbeitrag)"]
[null,null,"Arbl.VS",1.2999999999999999E-2,null,null,null,"Auszubildende/r:",null,"nein","(ja od. nein)"]
[null,null,"PflegeVS",1.7000000000000001E-2,{"$f":"IF(J30=\"ja\",\"+\",\"\")","v":""},{"$f":"IF(J30=\"ja\",0.6%,\"\")","v":""},null,"(kinderlose, die das 23. Lebensjahr vollendet haben)"]
[]
[null,"ã   R. Gassner, AELF Ebersberg-Erding"]